[Event "Titled Tuesday Blitz May 23 Late 2023"]
[White "Krallis, Christos"]
[Black "Drygalov, Sergey"]
[WhiteFideId "4298896"]
[BlackFideId "24171743"]
[WhiteElo "2243"]
[BlackElo "2533"]
[Result "1/2-1/2"]
[Round "05"]
[TimeControl "180+2"]
[Date "2023.05.23"]
[WhiteClock "0:00:13"]
[BlackClock "0:00:02"]

1. Nf3 {[%clk 0:03:00]}  d5 {[%clk 0:02:56]} 2. d4 {[%clk 0:02:59]}  Nf6 {[%clk 0:02:56]} 3. c4 {[%clk 0:02:59]}  e6 {[%clk 0:02:56]} 4. Nc3 {[%clk 0:02:53]}  c6 {[%clk 0:02:54]} 5. e3 {[%clk 0:02:49]}  Nbd7 {[%clk 0:02:54]} 6. Qc2 {[%clk 0:02:42]}  Bd6 {[%clk 0:02:53]} 7. Bd3 {[%clk 0:02:37]}  O-O {[%clk 0:02:52]} 8. O-O {[%clk 0:02:31]}  dxc4 {[%clk 0:02:48]} 9. Bxc4 {[%clk 0:02:31]}  b5 {[%clk 0:02:48]} 10. Bd3 {[%clk 0:02:27]}  Bb7 {[%clk 0:02:49]} 11. Rd1 {[%clk 0:02:25]}  Qc7 {[%clk 0:02:47]} 12. Bd2 {[%clk 0:01:54]}  Rac8 {[%clk 0:02:23]} 13. Rac1 {[%clk 0:01:45]}  Qb8 {[%clk 0:02:21]} 14. h3 {[%clk 0:01:45]}  a6 {[%clk 0:02:20]} 15. Ng5 {[%clk 0:01:45]}  h6 {[%clk 0:02:17]} 16. Nge4 {[%clk 0:01:42]}  c5 {[%clk 0:02:14]} 17. Nxd6 {[%clk 0:01:39]}  Qxd6 {[%clk 0:02:14]} 18. dxc5 {[%clk 0:01:02]}  Nxc5 {[%clk 0:02:15]} 19. Be1 {[%clk 0:01:00]}  Nxd3 {[%clk 0:02:11]} 20. Qxd3 {[%clk 0:00:56]}  Qe5 {[%clk 0:02:08]} 21. Qd4 {[%clk 0:00:47]}  Qg5 {[%clk 0:02:07]} 22. e4 {[%clk 0:00:24]}  Rc4 {[%clk 0:02:04]} 23. Qd2 {[%clk 0:00:22]}  Qxd2 {[%clk 0:02:00]} 24. Bxd2 {[%clk 0:00:23]}  Bxe4 {[%clk 0:01:54]} 25. b3 {[%clk 0:00:22]}  Rcc8 {[%clk 0:01:52]} 26. Be3 {[%clk 0:00:21]}  Bb7 {[%clk 0:01:49]} 27. a4 {[%clk 0:00:21]}  bxa4 {[%clk 0:01:47]} 28. Nxa4 {[%clk 0:00:20]}  Bd5 {[%clk 0:01:46]} 29. Nc5 {[%clk 0:00:19]}  Rc6 {[%clk 0:01:43]} 30. Ra1 {[%clk 0:00:19]}  Rb8 {[%clk 0:01:36]} 31. Rxa6 {[%clk 0:00:18]}  Rxa6 {[%clk 0:01:36]} 32. Nxa6 {[%clk 0:00:19]}  Rxb3 {[%clk 0:01:36]} 33. Nc5 {[%clk 0:00:19]}  Rb2 {[%clk 0:01:32]} 34. Nd3 {[%clk 0:00:19]}  Rc2 {[%clk 0:01:27]} 35. Nb4 {[%clk 0:00:18]}  Rc4 {[%clk 0:01:27]} 36. Nd3 {[%clk 0:00:18]}  g5 {[%clk 0:01:23]} 37. Rc1 {[%clk 0:00:18]}  Ra4 {[%clk 0:01:16]} 38. Nb2 {[%clk 0:00:18]}  Rb4 {[%clk 0:01:06]} 39. Nd3 {[%clk 0:00:18]}  Rc4 {[%clk 0:01:06]} 40. Rxc4 {[%clk 0:00:17]}  Bxc4 {[%clk 0:01:07]} 41. Ne5 {[%clk 0:00:17]}  Bd5 {[%clk 0:01:07]} 42. f3 {[%clk 0:00:18]}  Ne8 {[%clk 0:01:03]} 43. Ng4 {[%clk 0:00:17]}  Kg7 {[%clk 0:01:03]} 44. Nf2 {[%clk 0:00:17]}  Kg6 {[%clk 0:01:03]} 45. Nd3 {[%clk 0:00:17]}  f6 {[%clk 0:01:03]} 46. Kf2 {[%clk 0:00:17]}  e5 {[%clk 0:01:03]} 47. g3 {[%clk 0:00:17]}  Nd6 {[%clk 0:01:03]} 48. Ne1 {[%clk 0:00:16]}  h5 {[%clk 0:01:02]} 49. Bc1 {[%clk 0:00:15]}  Bc6 {[%clk 0:00:50]} 50. Ng2 {[%clk 0:00:15]}  Nf5 {[%clk 0:00:45]} 51. h4 {[%clk 0:00:14]}  Nd4 {[%clk 0:00:35]} 52. hxg5 {[%clk 0:00:14]}  fxg5 {[%clk 0:00:32]} 53. Ne1 {[%clk 0:00:13]}  Kf5 {[%clk 0:00:30]} 54. Be3 {[%clk 0:00:11]}  Ne6 {[%clk 0:00:24]} 55. Nc2 {[%clk 0:00:10]}  h4 {[%clk 0:00:24]} 56. gxh4 {[%clk 0:00:10]}  gxh4 {[%clk 0:00:25]} 57. Bd2 {[%clk 0:00:09]}  Nc5 {[%clk 0:00:17]} 58. Ne3+ {[%clk 0:00:09]}  Ke6 {[%clk 0:00:17]} 59. Ng2 {[%clk 0:00:08]}  Nd3+ {[%clk 0:00:15]} 60. Kg1 {[%clk 0:00:07]}  h3 {[%clk 0:00:14]} 61. Ne3 {[%clk 0:00:06]}  Bxf3 {[%clk 0:00:13]} 62. Kh2 {[%clk 0:00:06]}  Nf4 {[%clk 0:00:07]} 63. Nc2 {[%clk 0:00:06]}  Bg2 {[%clk 0:00:06]} 64. Ne1 {[%clk 0:00:06]}  Kf5 {[%clk 0:00:06]} 65. Nc2 {[%clk 0:00:04]}  Ke4 {[%clk 0:00:05]} 66. Ne1 {[%clk 0:00:04]}  Kf5 {[%clk 0:00:04]} 67. Nc2 {[%clk 0:00:04]}  Kg4 {[%clk 0:00:05]} 68. Ne1 {[%clk 0:00:04]}  Be4 {[%clk 0:00:05]} 69. Be3 {[%clk 0:00:04]}  Ne6 {[%clk 0:00:04]} 70. Bd2 {[%clk 0:00:04]}  Ng7 {[%clk 0:00:04]} 71. Kg1 {[%clk 0:00:05]}  Nf5 {[%clk 0:00:05]} 72. Kh2 {[%clk 0:00:05]}  Nd4 {[%clk 0:00:05]} 73. Be3 {[%clk 0:00:06]}  Ne6 {[%clk 0:00:04]} 74. Bd2 {[%clk 0:00:06]}  Nf4 {[%clk 0:00:05]} 75. Be3 {[%clk 0:00:06]}  Ng6 {[%clk 0:00:04]} 76. Bd2 {[%clk 0:00:07]}  Nh4 {[%clk 0:00:05]} 77. Bc3 {[%clk 0:00:07]}  Ng6 {[%clk 0:00:05]} 78. Bb2 {[%clk 0:00:07]}  Kh4 {[%clk 0:00:03]} 79. Bc3 {[%clk 0:00:07]}  Bd5 {[%clk 0:00:03]} 80. Bb2 {[%clk 0:00:08]}  Bc4 {[%clk 0:00:03]} 81. Nc2 {[%clk 0:00:08]}  e4 {[%clk 0:00:03]} 82. Ne3 {[%clk 0:00:08]}  Be6 {[%clk 0:00:03]} 83. Bf6+ {[%clk 0:00:07]}  Kh5 {[%clk 0:00:03]} 84. Kg3 {[%clk 0:00:08]}  Kh6 {[%clk 0:00:03]} 85. Bc3 {[%clk 0:00:08]}  Kh7 {[%clk 0:00:04]} 86. Bb4 {[%clk 0:00:08]}  Kg8 {[%clk 0:00:04]} 87. Bd6 {[%clk 0:00:08]}  Kf7 {[%clk 0:00:04]} 88. Ng4 {[%clk 0:00:09]}  Ke8 {[%clk 0:00:01]} 89. Kxh3 {[%clk 0:00:08]}  Kd7 {[%clk 0:00:01]} 90. Bh2 {[%clk 0:00:07]}  e3 {[%clk 0:00:01]} 91. Bg1 {[%clk 0:00:04]}  e2 {[%clk 0:00:01]} 92. Bf2 {[%clk 0:00:04]}  Nf4+ {[%clk 0:00:02]} 93. Kg3 {[%clk 0:00:05]}  Nd3 {[%clk 0:00:02]} 94. Ne3 {[%clk 0:00:03]}  e1=Q {[%clk 0:00:01]} 95. Bxe1 {[%clk 0:00:04]}  Nxe1 {[%clk 0:00:02]} 96. Kf2 {[%clk 0:00:05]}  Nd3+ {[%clk 0:00:03]} 97. Ke2 {[%clk 0:00:05]}  Nc5 {[%clk 0:00:03]} 98. Kd2 {[%clk 0:00:06]}  Kd6 {[%clk 0:00:03]} 99. Nd1 {[%clk 0:00:07]}  Ke5 {[%clk 0:00:04]} 100. Nc3 {[%clk 0:00:08]}  Kd4 {[%clk 0:00:04]} 101. Ne2+ {[%clk 0:00:08]}  Kc4 {[%clk 0:00:04]} 102. Nc1 {[%clk 0:00:08]}  Bf5 {[%clk 0:00:03]} 103. Ne2 {[%clk 0:00:09]}  Nb3+ {[%clk 0:00:04]} 104. Ke3 {[%clk 0:00:09]}  Bg4 {[%clk 0:00:04]} 105. Ng3 {[%clk 0:00:10]}  Nd4 {[%clk 0:00:04]} 106. Kf4 {[%clk 0:00:11]}  Be6 {[%clk 0:00:04]} 107. Nf1 {[%clk 0:00:11]}  Kd3 {[%clk 0:00:03]} 108. Ng3 {[%clk 0:00:11]}  Bd5 {[%clk 0:00:03]} 109. Ke5 {[%clk 0:00:11]}  Bc6 {[%clk 0:00:04]} 110. Nh5 {[%clk 0:00:11]}  Nf3+ {[%clk 0:00:03]} 111. Kf4 {[%clk 0:00:11]}  Nd2 {[%clk 0:00:03]} 112. Ke5 {[%clk 0:00:12]}  Nc4+ {[%clk 0:00:03]} 113. Kf4 {[%clk 0:00:12]}  Kd4 {[%clk 0:00:03]} 114. Nf6 {[%clk 0:00:12]}  Nd6 {[%clk 0:00:03]} 115. Ng4 {[%clk 0:00:12]}  Nf7 {[%clk 0:00:04]} 116. Ne3 {[%clk 0:00:12]}  Nd8 {[%clk 0:00:03]} 117. Nf5+ {[%clk 0:00:12]}  Kd3 {[%clk 0:00:04]} 118. Ne3 {[%clk 0:00:13]}  Ne6+ {[%clk 0:00:04]} 119. Ke5 {[%clk 0:00:13]}  Nf8 {[%clk 0:00:04]} 120. Nf5 {[%clk 0:00:13]}  Ng6+ {[%clk 0:00:04]} 121. Kd6 {[%clk 0:00:13]}  Be4 {[%clk 0:00:03]} 122. Ne7 {[%clk 0:00:14]}  Nf4 {[%clk 0:00:03]} 123. Ke5 {[%clk 0:00:14]}  Ne2 {[%clk 0:00:03]} 124. Nf5 {[%clk 0:00:14]}  Ng1 {[%clk 0:00:02]} 125. Nd6 {[%clk 0:00:14]}  Nf3+ {[%clk 0:00:03]} 126. Kf6 {[%clk 0:00:14]}  Bc6 {[%clk 0:00:03]} 127. Nf7 {[%clk 0:00:15]}  Kd4 {[%clk 0:00:03]} 128. Ng5 {[%clk 0:00:15]}  Nd2 {[%clk 0:00:02]} 129. Ne6+ {[%clk 0:00:15]}  Kd5 {[%clk 0:00:03]} 130. Nf4+ {[%clk 0:00:16]}  Kd6 {[%clk 0:00:03]} 131. Kf5 {[%clk 0:00:16]}  Bd7+ {[%clk 0:00:03]} 132. Kf6 {[%clk 0:00:16]}  Ne4+ {[%clk 0:00:04]} 133. Kg6 {[%clk 0:00:16]}  Ke5 {[%clk 0:00:04]} 134. Ne2 {[%clk 0:00:16]}  Be8+ {[%clk 0:00:04]} 135. Kg7 {[%clk 0:00:15]}  Nd6 {[%clk 0:00:04]} 136. Ng3 {[%clk 0:00:14]}  Kf4 {[%clk 0:00:04]} 137. Ne2+ {[%clk 0:00:15]}  Kg5 {[%clk 0:00:04]} 138. Nd4 {[%clk 0:00:14]}  Bh5 {[%clk 0:00:04]} 139. Ne6+ {[%clk 0:00:13]}  Kf5 {[%clk 0:00:04]} 140. Nd4+ {[%clk 0:00:13]}  Ke5 {[%clk 0:00:05]} 141. Nc6+ {[%clk 0:00:13]}  Ke6 {[%clk 0:00:06]} 142. Nd4+ {[%clk 0:00:13]}  Ke7 {[%clk 0:00:06]} 143. Nc6+ {[%clk 0:00:13]}  Ke6 {[%clk 0:00:05]} 144. Nd4+ {[%clk 0:00:14]}  Kd5 {[%clk 0:00:05]} 145. Nc2 {[%clk 0:00:13]}  Ke4 {[%clk 0:00:02]} 1/2-1/2


[Site "https://www.chess.com"]

[Event "Titled Tuesday Blitz May 23 Late 2023"]
[White "Moroni, Luca Jr"]
[Black "Vlassov, Nikolai"]
[WhiteFideId "865834"]
[BlackFideId "4103360"]
[WhiteElo "2569"]
[BlackElo "2324"]
[Result "1-0"]
[Round "05"]
[TimeControl "180+2"]
[Date "2023.05.23"]
[WhiteClock "0:01:38"]
[BlackClock "0:00:08"]

1. g3 {[%clk 0:03:00]}  h5 {[%clk 0:02:59]} 2. Nf3 {[%clk 0:02:59]}  h4 {[%clk 0:02:59]} 3. Nxh4 {[%clk 0:02:58]}  Rxh4 {[%clk 0:03:00]} 4. gxh4 {[%clk 0:02:59]}  e5 {[%clk 0:03:00]} 5. e3 {[%clk 0:02:56]}  Qxh4 {[%clk 0:03:00]} 6. d3 {[%clk 0:02:56]}  Nc6 {[%clk 0:02:59]} 7. Nd2 {[%clk 0:02:56]}  d5 {[%clk 0:02:58]} 8. Nf3 {[%clk 0:02:55]}  Qh5 {[%clk 0:02:52]} 9. Be2 {[%clk 0:02:52]}  Nf6 {[%clk 0:02:49]} 10. d4 {[%clk 0:02:41]}  e4 {[%clk 0:02:29]} 11. Ne5 {[%clk 0:02:38]}  Qg5 {[%clk 0:02:29]} 12. Nxc6 {[%clk 0:02:37]}  bxc6 {[%clk 0:02:29]} 13. Kd2 {[%clk 0:02:28]}  c5 {[%clk 0:02:16]} 14. c3 {[%clk 0:02:24]}  Bd7 {[%clk 0:01:39]} 15. Kc2 {[%clk 0:02:20]}  cxd4 {[%clk 0:01:36]} 16. exd4 {[%clk 0:02:20]}  Qf5 {[%clk 0:01:36]} 17. Be3 {[%clk 0:02:20]}  Ba4+ {[%clk 0:01:27]} 18. b3 {[%clk 0:02:20]}  Bd7 {[%clk 0:01:28]} 19. Rg1 {[%clk 0:02:19]}  Qh3 {[%clk 0:01:20]} 20. Qd2 {[%clk 0:02:15]}  Qxh2 {[%clk 0:01:11]} 21. Bf4 {[%clk 0:02:14]}  Qh3 {[%clk 0:00:58]} 22. Qe3 {[%clk 0:02:01]}  Qe6 {[%clk 0:00:52]} 23. Rg5 {[%clk 0:01:58]}  Qb6 {[%clk 0:00:44]} 24. Be5 {[%clk 0:01:54]}  Be6 {[%clk 0:00:38]} 25. Rh1 {[%clk 0:01:48]}  O-O-O {[%clk 0:00:34]} 26. Rh8 {[%clk 0:01:47]}  Qa5 {[%clk 0:00:28]} 27. Kb1 {[%clk 0:01:46]}  c5 {[%clk 0:00:21]} 28. Bxf6 {[%clk 0:01:42]}  gxf6 {[%clk 0:00:21]} 29. Rgg8 {[%clk 0:01:43]}  Be7 {[%clk 0:00:20]} 30. Rxd8+ {[%clk 0:01:44]}  Bxd8 {[%clk 0:00:20]} 31. dxc5 {[%clk 0:01:45]}  Kd7 {[%clk 0:00:15]} 32. Qd4 {[%clk 0:01:43]}  Be7 {[%clk 0:00:15]} 33. b4 {[%clk 0:01:43]}  Qa4 {[%clk 0:00:13]} 34. Bd1 {[%clk 0:01:40]}  Qa3 {[%clk 0:00:12]} 35. Bb3 {[%clk 0:01:40]}  a5 {[%clk 0:00:08]} 36. Bxd5 {[%clk 0:01:38]} 1-0


[Site "https://www.chess.com"]

[Event "Titled Tuesday Blitz May 23 Late 2023"]
[White "Javakhadze, Zurab"]
[Black "Krzyzanowski, Marcin"]
[WhiteFideId "13603647"]
[BlackFideId "1132199"]
[WhiteElo "2381"]
[BlackElo "2471"]
[Result "0-1"]
[Round "05"]
[TimeControl "180+2"]
[Date "2023.05.23"]
[WhiteClock "0:00:01"]
[BlackClock "0:00:29"]

1. Nf3 {[%clk 0:03:00]}  d5 {[%clk 0:02:59]} 2. g3 {[%clk 0:02:55]}  g6 {[%clk 0:02:57]} 3. Bg2 {[%clk 0:02:55]}  Bg7 {[%clk 0:02:57]} 4. O-O {[%clk 0:02:54]}  e5 {[%clk 0:02:57]} 5. d3 {[%clk 0:02:54]}  Nc6 {[%clk 0:02:57]} 6. e4 {[%clk 0:02:52]}  Nge7 {[%clk 0:02:55]} 7. Nc3 {[%clk 0:02:51]}  O-O {[%clk 0:02:52]} 8. Bd2 {[%clk 0:02:50]}  h6 {[%clk 0:02:39]} 9. Qc1 {[%clk 0:02:33]}  Kh7 {[%clk 0:02:34]} 10. Nxd5 {[%clk 0:02:28]}  Be6 {[%clk 0:02:28]} 11. Nxe7 {[%clk 0:02:19]}  Qxe7 {[%clk 0:02:28]} 12. h3 {[%clk 0:02:06]}  Rad8 {[%clk 0:02:28]} 13. Be3 {[%clk 0:02:05]}  f5 {[%clk 0:02:24]} 14. exf5 {[%clk 0:01:59]}  gxf5 {[%clk 0:02:25]} 15. Nh2 {[%clk 0:01:54]}  Bd5 {[%clk 0:02:17]} 16. Re1 {[%clk 0:01:44]}  Bxg2 {[%clk 0:02:14]} 17. Kxg2 {[%clk 0:01:45]}  Qf7 {[%clk 0:02:13]} 18. f4 {[%clk 0:01:42]}  Qd5+ {[%clk 0:02:09]} 19. Kf2 {[%clk 0:01:39]}  exf4 {[%clk 0:01:39]} 20. gxf4 {[%clk 0:01:37]}  Nd4 {[%clk 0:01:32]} 21. c3 {[%clk 0:01:17]}  Bf6 {[%clk 0:01:01]} 22. cxd4 {[%clk 0:00:17]}  Bh4+ {[%clk 0:01:01]} 23. Ke2 {[%clk 0:00:16]}  Qg2+ {[%clk 0:01:00]} 24. Kd1 {[%clk 0:00:16]}  Bxe1 {[%clk 0:00:55]} 25. Qxc7+ {[%clk 0:00:16]}  Kg6 {[%clk 0:00:52]} 26. Kxe1 {[%clk 0:00:10]}  Qxh2 {[%clk 0:00:51]} 27. Kf1 {[%clk 0:00:09]}  Qxh3+ {[%clk 0:00:46]} 28. Kf2 {[%clk 0:00:08]}  Qh2+ {[%clk 0:00:44]} 29. Kf3 {[%clk 0:00:08]}  Rde8 {[%clk 0:00:32]} 30. Rg1+ {[%clk 0:00:07]}  Kh5 {[%clk 0:00:32]} 31. Qg7 {[%clk 0:00:05]}  Rxe3+ {[%clk 0:00:27]} 32. Kxe3 {[%clk 0:00:04]}  Re8+ {[%clk 0:00:28]} 33. Kf3 {[%clk 0:00:01]}  Qe2+ {[%clk 0:00:29]} 34. Kg3 {[%clk 0:00:01]}  Re3# {[%clk 0:00:29]} 0-1


[Site "https://www.chess.com"]

[Event "Titled Tuesday Blitz May 23 Late 2023"]
[White "Quispe Arteaga, Gabriel"]
[Black "Tejedor Fuente, Enrique"]
[WhiteFideId "32059809"]
[BlackFideId "2299100"]
[WhiteElo "2274"]
[BlackElo "2496"]
[Result "0-1"]
[Round "05"]
[TimeControl "180+2"]
[Date "2023.05.23"]
[WhiteClock "0:00:03"]
[BlackClock "0:01:07"]

1. c4 {[%clk 0:02:59]}  Nf6 {[%clk 0:02:47]} 2. Nc3 {[%clk 0:02:59]}  c5 {[%clk 0:02:36]} 3. Nf3 {[%clk 0:02:59]}  e6 {[%clk 0:02:27]} 4. d4 {[%clk 0:02:57]}  d5 {[%clk 0:02:25]} 5. cxd5 {[%clk 0:02:57]}  exd5 {[%clk 0:02:21]} 6. g3 {[%clk 0:02:57]}  Nc6 {[%clk 0:02:16]} 7. Bg2 {[%clk 0:02:56]}  h6 {[%clk 0:02:15]} 8. O-O {[%clk 0:02:56]}  Be7 {[%clk 0:02:07]} 9. Bf4 {[%clk 0:02:28]}  O-O {[%clk 0:02:00]} 10. Rc1 {[%clk 0:02:28]}  c4 {[%clk 0:01:56]} 11. Ne5 {[%clk 0:02:28]}  Be6 {[%clk 0:01:54]} 12. Nxc4 {[%clk 0:01:47]}  dxc4 {[%clk 0:01:55]} 13. d5 {[%clk 0:01:47]}  Nxd5 {[%clk 0:01:56]} 14. Nxd5 {[%clk 0:01:47]}  Bf6 {[%clk 0:01:44]} 15. Nc7 {[%clk 0:01:31]}  Bxb2 {[%clk 0:01:37]} 16. Nxe6 {[%clk 0:01:26]}  Qxd1 {[%clk 0:01:31]} 17. Rcxd1 {[%clk 0:00:38]}  fxe6 {[%clk 0:01:31]} 18. Bh3 {[%clk 0:00:38]}  Rae8 {[%clk 0:01:28]} 19. Rd6 {[%clk 0:00:18]}  Kf7 {[%clk 0:01:20]} 20. Bg2 {[%clk 0:00:12]}  Rd8 {[%clk 0:01:10]} 21. Bxc6 {[%clk 0:00:11]}  Rxd6 {[%clk 0:01:09]} 22. Bxd6 {[%clk 0:00:10]}  Rd8 {[%clk 0:01:10]} 23. Bxb7 {[%clk 0:00:06]}  Rxd6 {[%clk 0:01:09]} 24. Be4 {[%clk 0:00:07]}  Rd2 {[%clk 0:01:08]} 25. Re1 {[%clk 0:00:04]}  c3 {[%clk 0:01:07]} 26. Kf1 {[%clk 0:00:03]}  c2 {[%clk 0:01:07]} 0-1


[Site "https://www.chess.com"]

[Event "Titled Tuesday Blitz May 23 Late 2023"]
[White "NikaVolkov"]
[Black "Milikow, Yoav"]
[BlackFideId "2822237"]
[WhiteElo "2634"]
[BlackElo "2410"]
[Result "0-1"]
[Round "05"]
[TimeControl "180+2"]
[Date "2023.05.23"]
[WhiteClock "0:00:18"]
[BlackClock "0:00:06"]

1. d4 {[%clk 0:03:00]}  Nf6 {[%clk 0:02:56]} 2. Nf3 {[%clk 0:03:01]}  d5 {[%clk 0:02:56]} 3. e3 {[%clk 0:03:02]}  e6 {[%clk 0:02:55]} 4. c4 {[%clk 0:03:03]}  Be7 {[%clk 0:02:53]} 5. Nc3 {[%clk 0:03:03]}  O-O {[%clk 0:02:53]} 6. cxd5 {[%clk 0:03:03]}  exd5 {[%clk 0:02:53]} 7. Ne5 {[%clk 0:03:04]}  c5 {[%clk 0:02:51]} 8. Bd3 {[%clk 0:03:04]}  Nc6 {[%clk 0:02:48]} 9. O-O {[%clk 0:03:05]}  cxd4 {[%clk 0:02:45]} 10. exd4 {[%clk 0:03:05]}  Nxd4 {[%clk 0:02:39]} 11. Bxh7+ {[%clk 0:03:05]}  Kxh7 {[%clk 0:02:37]} 12. Qxd4 {[%clk 0:03:06]}  Be6 {[%clk 0:02:37]} 13. Be3 {[%clk 0:03:05]}  a6 {[%clk 0:02:28]} 14. h3 {[%clk 0:03:05]}  Qc7 {[%clk 0:02:27]} 15. Rac1 {[%clk 0:03:03]}  Qb8 {[%clk 0:02:16]} 16. Rfd1 {[%clk 0:03:02]}  Rc8 {[%clk 0:02:06]} 17. Nd3 {[%clk 0:02:48]}  Rc4 {[%clk 0:02:03]} 18. Qb6 {[%clk 0:02:41]}  Bd8 {[%clk 0:01:45]} 19. Qb3 {[%clk 0:02:09]}  d4 {[%clk 0:01:42]} 20. Bf4 {[%clk 0:02:10]}  Qa7 {[%clk 0:01:18]} 21. Qc2 {[%clk 0:01:53]}  Kg8 {[%clk 0:01:17]} 22. Ne5 {[%clk 0:01:51]}  Rcc8 {[%clk 0:01:16]} 23. Qe2 {[%clk 0:01:35]}  dxc3 {[%clk 0:01:15]} 24. bxc3 {[%clk 0:01:36]}  Bc7 {[%clk 0:01:12]} 25. Be3 {[%clk 0:01:35]}  Qb8 {[%clk 0:01:11]} 26. Nf3 {[%clk 0:01:34]}  Bc4 {[%clk 0:01:08]} 27. Qe1 {[%clk 0:01:30]}  Bxa2 {[%clk 0:01:04]} 28. c4 {[%clk 0:01:29]}  Bb3 {[%clk 0:01:03]} 29. Rd4 {[%clk 0:01:22]}  Ba4 {[%clk 0:01:00]} 30. Rh4 {[%clk 0:01:20]}  Bc6 {[%clk 0:00:58]} 31. Nd4 {[%clk 0:01:17]}  Re8 {[%clk 0:00:50]} 32. Qd2 {[%clk 0:01:13]}  Qd8 {[%clk 0:00:44]} 33. Qe2 {[%clk 0:01:00]}  Qd6 {[%clk 0:00:38]} 34. g3 {[%clk 0:00:52]}  Qa3 {[%clk 0:00:35]} 35. Re1 {[%clk 0:00:47]}  Re7 {[%clk 0:00:28]} 36. Nxc6 {[%clk 0:00:47]}  bxc6 {[%clk 0:00:26]} 37. Qf3 {[%clk 0:00:48]}  Rae8 {[%clk 0:00:22]} 38. Kg2 {[%clk 0:00:47]}  Qc3 {[%clk 0:00:19]} 39. Rc1 {[%clk 0:00:45]}  Qb2 {[%clk 0:00:16]} 40. Rd1 {[%clk 0:00:42]}  Rxe3 {[%clk 0:00:15]} 41. Qxc6 {[%clk 0:00:43]}  Re2 {[%clk 0:00:15]} 42. Rf1 {[%clk 0:00:43]}  Bb8 {[%clk 0:00:12]} 43. c5 {[%clk 0:00:40]}  Qc3 {[%clk 0:00:12]} 44. Qf3 {[%clk 0:00:22]}  Qxc5 {[%clk 0:00:12]} 45. Ra4 {[%clk 0:00:21]}  Qb5 {[%clk 0:00:11]} 46. Ra3 {[%clk 0:00:19]}  Re1 {[%clk 0:00:10]} 47. Rxe1 {[%clk 0:00:16]}  Rxe1 {[%clk 0:00:11]} 48. Kh2 {[%clk 0:00:17]}  Qf1 {[%clk 0:00:10]} 49. Qg2 {[%clk 0:00:17]}  Qxg2+ {[%clk 0:00:10]} 50. Kxg2 {[%clk 0:00:18]}  Re6 {[%clk 0:00:10]} 51. Rb3 {[%clk 0:00:18]}  Ba7 {[%clk 0:00:10]} 52. f4 {[%clk 0:00:19]}  Nd5 {[%clk 0:00:09]} 53. Rb7 {[%clk 0:00:19]}  Bc5 {[%clk 0:00:08]} 54. Kf3 {[%clk 0:00:19]}  Rb6 {[%clk 0:00:08]} 55. Rd7 {[%clk 0:00:19]}  Rb3+ {[%clk 0:00:08]} 56. Ke2 {[%clk 0:00:18]}  Nf6 {[%clk 0:00:08]} 57. Rd8+ {[%clk 0:00:18]}  Bf8 {[%clk 0:00:08]} 58. g4 {[%clk 0:00:19]}  a5 {[%clk 0:00:08]} 59. g5 {[%clk 0:00:19]}  Nh5 {[%clk 0:00:07]} 60. f5 {[%clk 0:00:19]}  Ng3+ {[%clk 0:00:08]} 61. Kf2 {[%clk 0:00:18]}  Nxf5 {[%clk 0:00:09]} 62. Kg2 {[%clk 0:00:19]}  a4 {[%clk 0:00:08]} 63. Ra8 {[%clk 0:00:19]}  a3 {[%clk 0:00:08]} 64. h4 {[%clk 0:00:20]}  Nxh4+ {[%clk 0:00:08]} 65. Kh2 {[%clk 0:00:21]}  Nf3+ {[%clk 0:00:08]} 66. Kh3 {[%clk 0:00:21]}  Nxg5+ {[%clk 0:00:09]} 67. Kh4 {[%clk 0:00:22]}  Ne6 {[%clk 0:00:09]} 68. Kh5 {[%clk 0:00:22]}  g6+ {[%clk 0:00:09]} 69. Kg4 {[%clk 0:00:23]}  Kg7 {[%clk 0:00:08]} 70. Ra7 {[%clk 0:00:22]}  Bc5 {[%clk 0:00:06]} 71. Rd7 {[%clk 0:00:21]}  a2 {[%clk 0:00:05]} 72. Rd1 {[%clk 0:00:18]}  f5+ {[%clk 0:00:05]} 73. Kh4 {[%clk 0:00:18]}  Be7# {[%clk 0:00:06]} 0-1


[Site "https://www.chess.com"]

[Event "Titled Tuesday Blitz May 23 Late 2023"]
[White "Chor, Kevin"]
[Black "Sieciechowicz, Marcin"]
[WhiteFideId "2090740"]
[BlackFideId "1130170"]
[WhiteElo "2629"]
[BlackElo "2302"]
[Result "1-0"]
[Round "05"]
[TimeControl "180+2"]
[Date "2023.05.23"]
[WhiteClock "0:00:11"]
[BlackClock "0:00:00"]

1. e4 {[%clk 0:03:00]}  e6 {[%clk 0:03:00]} 2. d4 {[%clk 0:03:00]}  d5 {[%clk 0:03:00]} 3. Nd2 {[%clk 0:02:57]}  c5 {[%clk 0:03:00]} 4. exd5 {[%clk 0:02:57]}  Qxd5 {[%clk 0:03:01]} 5. Ngf3 {[%clk 0:02:56]}  cxd4 {[%clk 0:03:01]} 6. Bc4 {[%clk 0:02:55]}  Qd6 {[%clk 0:03:01]} 7. O-O {[%clk 0:02:48]}  Nf6 {[%clk 0:03:02]} 8. Nb3 {[%clk 0:02:41]}  Nc6 {[%clk 0:03:02]} 9. Nbxd4 {[%clk 0:02:40]}  Nxd4 {[%clk 0:03:02]} 10. Nxd4 {[%clk 0:02:40]}  Be7 {[%clk 0:03:03]} 11. Nb5 {[%clk 0:02:21]}  Qc6 {[%clk 0:03:02]} 12. Be2 {[%clk 0:02:16]}  O-O {[%clk 0:02:53]} 13. Nd4 {[%clk 0:02:12]}  Qc7 {[%clk 0:02:52]} 14. Nb5 {[%clk 0:02:11]}  Qe5 {[%clk 0:02:41]} 15. Qd4 {[%clk 0:02:11]}  Qxd4 {[%clk 0:02:38]} 16. Nxd4 {[%clk 0:02:11]}  Bd7 {[%clk 0:02:37]} 17. Bf3 {[%clk 0:02:10]}  e5 {[%clk 0:02:32]} 18. Re1 {[%clk 0:01:47]}  Bd6 {[%clk 0:01:39]} 19. Nb3 {[%clk 0:01:47]}  Rac8 {[%clk 0:01:37]} 20. c3 {[%clk 0:01:38]}  e4 {[%clk 0:01:22]} 21. Be2 {[%clk 0:01:23]}  Rfd8 {[%clk 0:01:16]} 22. Bg5 {[%clk 0:01:20]}  h6 {[%clk 0:01:16]} 23. Bh4 {[%clk 0:01:19]}  g5 {[%clk 0:01:16]} 24. Bg3 {[%clk 0:01:20]}  Bxg3 {[%clk 0:01:15]} 25. hxg3 {[%clk 0:01:20]}  Be6 {[%clk 0:01:14]} 26. Nd4 {[%clk 0:01:17]}  Bd5 {[%clk 0:01:04]} 27. Nf5 {[%clk 0:01:11]}  Kh7 {[%clk 0:01:04]} 28. Ne7 {[%clk 0:01:01]}  Rc7 {[%clk 0:01:04]} 29. Nxd5 {[%clk 0:01:01]}  Rxd5 {[%clk 0:01:03]} 30. Rad1 {[%clk 0:00:58]}  Rcd7 {[%clk 0:01:04]} 31. Rxd5 {[%clk 0:00:53]}  Rxd5 {[%clk 0:01:05]} 32. Rd1 {[%clk 0:00:53]}  Kg6 {[%clk 0:01:04]} 33. Rxd5 {[%clk 0:00:41]}  Nxd5 {[%clk 0:01:05]} 34. Bc4 {[%clk 0:00:42]}  Nb6 {[%clk 0:01:02]} 35. Bb3 {[%clk 0:00:42]}  f5 {[%clk 0:01:01]} 36. Kf1 {[%clk 0:00:42]}  Kf6 {[%clk 0:01:02]} 37. Ke2 {[%clk 0:00:42]}  Ke5 {[%clk 0:01:02]} 38. a4 {[%clk 0:00:42]}  Nd7 {[%clk 0:01:00]} 39. Bc2 {[%clk 0:00:41]}  a5 {[%clk 0:01:00]} 40. b4 {[%clk 0:00:40]}  b6 {[%clk 0:01:01]} 41. Ke3 {[%clk 0:00:35]}  Nf6 {[%clk 0:00:58]} 42. f4+ {[%clk 0:00:34]}  Kd6 {[%clk 0:00:34]} 43. Kd4 {[%clk 0:00:27]}  gxf4 {[%clk 0:00:32]} 44. gxf4 {[%clk 0:00:26]}  Nd5 {[%clk 0:00:27]} 45. bxa5 {[%clk 0:00:24]}  bxa5 {[%clk 0:00:24]} 46. g3 {[%clk 0:00:24]}  Ne7 {[%clk 0:00:21]} 47. g4 {[%clk 0:00:21]}  fxg4 {[%clk 0:00:20]} 48. Bxe4 {[%clk 0:00:18]}  h5 {[%clk 0:00:20]} 49. c4 {[%clk 0:00:18]}  h4 {[%clk 0:00:19]} 50. c5+ {[%clk 0:00:18]}  Ke6 {[%clk 0:00:13]} 51. Ke3 {[%clk 0:00:18]}  Kd7 {[%clk 0:00:07]} 52. f5 {[%clk 0:00:17]}  Ng8 {[%clk 0:00:07]} 53. Kf4 {[%clk 0:00:15]}  Nf6 {[%clk 0:00:07]} 54. Bh1 {[%clk 0:00:15]}  Kc7 {[%clk 0:00:06]} 55. Kg5 {[%clk 0:00:15]}  g3 {[%clk 0:00:07]} 56. Kxh4 {[%clk 0:00:14]}  Nd7 {[%clk 0:00:07]} 57. c6 {[%clk 0:00:14]}  Nb6 {[%clk 0:00:03]} 58. f6 {[%clk 0:00:10]}  Kd6 {[%clk 0:00:00]} 59. Kg5 {[%clk 0:00:11]} 1-0


[Site "https://www.chess.com"]